fUST/lending_fUST_20250717
["ID","MTS","AMOUNT","RATE_DAILY","PERIOD"]
[372659229,1752737444227,-500.0,0.00019178,2]
[372659231,1752737444236,-447.720727,0.00019178,2]
[372659232,1752737444245,-666.0,0.00019178,2]
[372659234,1752737444255,-460.0,0.00019203,2]
[372659237,1752737444264,-946.38,0.00019203,2]
[372659238,1752737444274,-1343.71,0.00019205,2]
[372659241,1752737444284,-1954.51,0.00019205,2]
[372659242,1752737444293,-460.0,0.00019205,2]
[372659245,1752737444303,-460.0,0.00019205,2]
[372659246,1752737444313,-1088.86,0.00019205,2]
[372659248,1752737444323,-805.58,0.00019205,2]
[372659250,1752737444332,-607.99,0.00019205,2]
[372659252,1752737444342,-460.0,0.00019205,2]
[372659254,1752737444352,-460.0,0.00019205,2]
[372659256,1752737444362,-460.0,0.00019205,2]
[372659258,1752737444372,-160.0,0.00019205,2]
[372659260,1752737444382,-160.0,0.00019205,2]
[372659262,1752737444392,-160.0,0.00019205,2]
[372659264,1752737444403,-215.59244943,0.00019205,2]
[372659266,1752737444413,-12607.95677342,0.00019205,2]
[372659268,1752737444423,-214.44804168,0.00019205,2]
[372659270,1752737444432,-160.0,0.00019205,2]
[372659273,1752737444442,-160.0,0.00019205,2]
[372659274,1752737444452,-839.15451687,0.00019205,2]
[372659276,1752737444462,-160.0,0.00019205,2]
[372659278,1752737444471,-230.85589339,0.00019205,2]
[372659281,1752737444481,-160.0,0.00019205,2]
[372659282,1752737444491,-525.67742785,0.00019205,2]
[372659284,1752737444500,-160.0,0.00019205,2]
[372659286,1752737444509,-160.0,0.00019205,2]
[372659288,1752737444520,-476.16111942,0.00019206,2]
[372659290,1752737444530,-460.0,0.00019207,2]
[372659292,1752737444539,-460.0,0.00019207,2]
[372659307,1752737444685,-460.0,0.00019207,2]
[372659309,1752737444695,-460.0,0.00019207,2]
[372659311,1752737444704,-460.0,0.00019207,2]
[372659313,1752737444714,-460.0,0.00019207,2]
[372659315,1752737444724,-460.0,0.00019207,2]
[372659317,1752737444734,-460.0,0.00019207,2]
[372659319,1752737444745,-460.0,0.00019207,2]
[372659321,1752737444755,-460.0,0.00019207,2]
[372659323,1752737444765,-460.0,0.00019207,2]
[372659325,1752737444775,-460.0,0.00019207,2]
[372659327,1752737444785,-460.0,0.00019207,2]
[372659329,1752737444795,-647.3,0.00019207,2]
[372659331,1752737444804,-460.0,0.00019207,2]
[372659333,1752737444815,-460.0,0.00019207,2]
[372659335,1752737444824,-460.0,0.00019207,2]
[372659337,1752737444834,-460.0,0.00019207,2]
[372659339,1752737444844,-460.0,0.00019207,2]
[372659341,1752737444854,-460.0,0.00019207,2]
[372659343,1752737444864,-460.0,0.00019207,2]
[372659345,1752737444874,-460.0,0.00019207,2]
[372659347,1752737444884,-638.97,0.00019207,2]
[372659349,1752737444895,-460.0,0.00019207,2]
[372659351,1752737444904,-1076.11,0.00019207,2]
[372659353,1752737444914,-1901.08,0.00019207,2]
[372659355,1752737444924,-1496.66,0.00019208,2]
[372659357,1752737444933,-497.8,0.00019208,2]
[372659359,1752737444942,-460.0,0.00019218,2]
[372659361,1752737444954,-100000.0,0.00019329,2]
[372659363,1752737444964,-160.0,0.00019367,2]
[372659365,1752737444973,-500.0,0.00019373,2]
[372659367,1752737444983,-500.0,0.00019373,2]
[372659369,1752737444993,-500.0,0.00019373,2]
[372659371,1752737445002,-522.70810626,0.00019373,2]
[372659373,1752737445012,-500.0,0.00019373,2]
[372659375,1752737445021,-500.0,0.00019373,2]
[372659377,1752737445030,-425.12574074,0.00019373,2]
[372659379,1752737445039,-500.0,0.00019373,2]
[372659381,1752737445048,-500.0,0.00019373,2]
[372659383,1752737445058,-500.0,0.00019373,2]
[372659385,1752737445067,-8102.3089461,0.00019383,2]
[372659387,1752737445077,-1653.73,0.000194,2]
[372659389,1752737445086,-215.0738,0.00019469,2]
[372659391,1752737445096,-460.0,0.00019477,2]
[372659393,1752737445105,-946.38,0.00019477,2]
[372659395,1752737445115,-1343.71,0.00019479,2]
[372659397,1752737445124,-1954.51,0.00019479,2]
[372659399,1752737445134,-460.0,0.00019479,2]
[372659401,1752737445143,-460.0,0.00019479,2]
[372659403,1752737445153,-1088.86,0.00019479,2]
[372659405,1752737445162,-805.58,0.00019479,2]
[372659407,1752737445171,-607.99,0.00019479,2]
[372659409,1752737445181,-460.0,0.00019479,2]
[372659411,1752737445190,-460.0,0.00019479,2]
[372659413,1752737445203,-460.0,0.00019479,2]
[372659414,1752737445216,-460.0,0.00019481,2]
[372659416,1752737445226,-460.0,0.00019481,2]
[372659418,1752737445236,-460.0,0.00019481,2]
[372659420,1752737445246,-460.0,0.00019481,2]
[372659422,1752737445256,-460.0,0.00019481,2]
[372659424,1752737445265,-460.0,0.00019481,2]
[372659426,1752737445275,-460.0,0.00019481,2]
[372659428,1752737445285,-460.0,0.00019481,2]
[372659431,1752737445295,-460.0,0.00019481,2]
[372659433,1752737445305,-460.0,0.00019481,2]
[372659434,1752737445316,-460.0,0.00019481,2]
[372659436,1752737445325,-460.0,0.00019481,2]
[372659438,1752737445335,-647.3,0.00019481,2]
[372659440,1752737445345,-460.0,0.00019481,2]
[372659442,1752737445354,-460.0,0.00019481,2]
[372659444,1752737445364,-460.0,0.00019481,2]
[372659447,1752737445374,-460.0,0.00019481,2]
[372659448,1752737445384,-460.0,0.00019481,2]
[372659451,1752737445395,-460.0,0.00019481,2]
[372659452,1752737445404,-460.0,0.00019481,2]
[372659454,1752737445414,-460.0,0.00019481,2]
[372659456,1752737445423,-638.97,0.00019481,2]
[372659458,1752737445434,-460.0,0.00019481,2]
[372659460,1752737445447,-1076.11,0.00019481,2]
[372659462,1752737445465,-1901.08,0.00019481,2]
[372659464,1752737445474,-1496.66,0.00019482,2]
[372659466,1752737445483,-497.8,0.00019482,2]
[372659468,1752737445493,-436.18,0.00019487,3]
[372659470,1752737445502,-460.0,0.00019492,2]
[372659472,1752737445512,-8102.3089461,0.00019624,2]
[372659474,1752737445521,-420.0,0.00019639,2]
[372659476,1752737445531,-830.0,0.00019735,2]
[372659478,1752737445540,-460.0,0.00019751,2]
[372659480,1752737445550,-946.38,0.00019751,2]
[372659482,1752737445559,-1343.71,0.00019753,2]
[372659484,1752737445568,-1954.51,0.00019753,2]
[372659486,1752737445578,-460.0,0.00019753,2]
[372659488,1752737445587,-460.0,0.00019753,2]
[372659490,1752737445597,-1088.86,0.00019753,2]
[372659492,1752737445606,-805.58,0.00019753,2]
[372659494,1752737445616,-607.99,0.00019753,2]
[372659496,1752737445625,-460.0,0.00019753,2]
[372659498,1752737445635,-546.91942276,0.00019753,2]
[372659500,1752737445645,-460.0,0.00019753,2]
[372659502,1752737445654,-411.23542031,0.00019755,2]
[372659504,1752737445664,-460.0,0.00019755,2]
[372659506,1752737445673,-460.0,0.00019755,2]
[372659508,1752737445683,-247.02,0.00019755,2]
[372659510,1752737445692,-460.0,0.00019755,2]
[372659512,1752737445702,-460.0,0.00019755,2]
[372659514,1752737445711,-460.0,0.00019755,2]
[372659516,1752737445720,-460.0,0.00019755,2]
[372659518,1752737445730,-460.0,0.00019755,2]
[372659520,1752737445739,-478.36297026,0.00019755,2]
[372659522,1752737445748,-460.0,0.00019755,2]
[372659524,1752737445757,-647.3,0.00019755,2]
[372659526,1752737445767,-505.98202562,0.00019755,2]
[372659528,1752737445776,-460.0,0.00019755,2]
[372659530,1752737445786,-460.0,0.00019755,2]
[372659532,1752737445795,-460.0,0.00019755,2]
[372659534,1752737445805,-460.0,0.00019755,2]
[372659536,1752737445814,-460.0,0.00019755,2]
[372659538,1752737445823,-460.0,0.00019755,2]
[372659540,1752737445833,-460.0,0.00019755,2]
[372659542,1752737445842,-638.97,0.00019755,2]
[372659543,1752737445851,-460.0,0.00019755,2]
[372659545,1752737445860,-1076.11,0.00019755,2]
[372659548,1752737445870,-1901.08,0.00019755,2]
[372659549,1752737445879,-1496.66,0.00019756,2]
[372659551,1752737445889,-497.8,0.00019756,2]
[372659553,1752737445899,-460.0,0.00019766,2]
[372659556,1752737445910,-179.9820018,0.00019797,2]
[372659558,1752737445921,-199220.12418772,0.000198,2]
[372659561,1752737445941,-9981.8875,0.000198,2]
[372659563,1752737445959,-1353.1442974,0.000198,2]
[372659566,1752737445971,-3492.03333909,0.000198,2]
[372659585,1752737446122,-460.0,0.00018111,2]
[372659587,1752737446132,-460.0,0.00018385,2]
[372659589,1752737446142,-1840.03945047,0.00018559,2]
[372659592,1752737446154,-679.66133885,0.00018559,2]
[372659597,1752737446189,-5616.3572261,0.00018559,2]
[372659602,1752737446204,-246.14004754,0.00018559,2]
[372659604,1752737446214,-460.0,0.00018659,2]
[372659606,1752737446223,-533.34,0.00019207,2]
[372659608,1752737446233,-533.34,0.00019481,2]
[372659610,1752737446243,-533.34,0.00019755,2]
[372659612,1752737446253,-772.9502421,0.000198,2]
[372659614,1752737446265,-493.62601773,0.000198,2]
[372659617,1752737446286,-460.0,0.00018933,2]
[372659619,1752737446296,-281.53047909,0.000198,2]
[372659639,1752737446487,-460.0,0.00018109,2]
[372659640,1752737446497,-460.0,0.00018111,2]
[372659641,1752737446506,-460.0,0.00018383,2]
[372659642,1752737446516,-460.0,0.00018385,2]
[372659643,1752737446525,-460.0,0.00018657,2]
[372659644,1752737446535,-460.0,0.00018931,2]
[372659645,1752737446545,-460.0,0.00019205,2]
[372659646,1752737446554,-460.0,0.00019207,2]
[372659647,1752737446564,-460.0,0.00019479,2]
[372659648,1752737446574,-605.64,0.00019481,2]
[372659649,1752737446583,-460.0,0.00019753,2]
[372659650,1752737446593,-111893.01896208,0.000198,2]
[372659695,1752737447285,-460.0,0.00018659,2]
[372659697,1752737447295,-460.0,0.00018933,2]
[372659699,1752737447305,-460.0,0.00019207,2]
[372659701,1752737447314,-388.1,0.00019319,3]
[372659703,1752737447324,-470.99116666,0.00019481,2]
[372659705,1752737447333,-47212.20272767,0.000198,2]
[372664265,1752737496863,903.43218283,0.00017459,2]
[372664301,1752737497293,451.71609142,0.00017564,2]
[372664610,1752737517723,-300.0,0.00017998,2]
[372664611,1752737517745,-600.82809579,0.00017999,2]
[372664612,1752737517769,-1147.79870084,0.00017999,2]
[372664613,1752737517794,-1147.79870084,0.00017999,2]
[372664614,1752737517816,-1147.79870084,0.00017999,2]
[372664615,1752737517840,-1147.79870084,0.00017999,2]
[372664616,1752737518025,-1147.79870084,0.00017999,2]
[372664617,1752737518053,-1147.79870084,0.00017999,2]
[372664618,1752737518079,-1147.79870084,0.00017999,2]
[372664619,1752737518104,-1147.79870084,0.00017999,2]
[372664620,1752737518129,-1165.06912271,0.00017999,2]
[372664621,1752737518152,-1165.06912271,0.00017999,2]
[372664622,1752737518176,-1165.06912271,0.00017999,2]
[372664623,1752737518202,-1302.86095165,0.00017999,2]
[372664624,1752737518227,-1302.86095165,0.00017999,2]
[372664625,1752737518251,-916.85302606,0.00017999,2]
[372664628,1752737535756,83890.0295565,0.00017244,2]
[372664633,1752737638447,421.6962264,0.00017109,2]
[372664641,1752737800612,232.768607,0.00017458,2]
[372664642,1752737800950,157.142322,0.00017459,2]
[372664643,1752737801276,166.41740863,0.00017459,2]
[372664644,1752737803302,826.9930064,0.00017067,2]
[372664645,1752737885512,168.4896302,0.00017195,2]
[372664646,1752737954326,2181.6409973,0.00017045,2]
[372664647,1752737967953,250.0,0.00027397,120]
[372664648,1752737981043,3355.3577013,0.00017072,2]
[372664649,1752737981104,6644.6422987,0.00017072,2]
[372664650,1752738028382,257.0,0.000175,2]
[372664652,1752738140449,1412.730549,0.00016998,2]
[372664654,1752738162425,16685.6271523,0.00016998,2]
[372664655,1752738162485,8214.3728477,0.00016998,2]
[372664658,1752738177702,-8760.0,0.00017543,2]
[372664660,1752738253575,2869.2614032,0.00017404,2]
[372664662,1752738352931,713.0910894,0.00016995,2]
[372664669,1752738553829,876.80693,0.00013699,2]
[372664684,1752738632045,-7.1456749,0.00017543,2]
[372664685,1752738632055,-473.94058851,0.00017894,2]
[372664686,1752738632065,-1200.0,0.00017972,2]
[372664687,1752738632074,-500.0,0.00017973,2]
[372664688,1752738632083,-500.0,0.00017973,2]
[372664690,1752738632093,-500.0,0.00017973,2]
[372664692,1752738632102,-500.0,0.00017973,2]
[372664694,1752738632111,-500.0,0.00017973,2]
[372664695,1752738632121,-207.4,0.00017988,2]
[372664696,1752738632131,-253.24405807,0.00017993,2]
[372664697,1752738632142,-206.75594193,0.00017993,2]
[372664698,1752738632152,-222.38405807,0.00017993,2]
[372664699,1752738632164,-77.61594193,0.00017993,2]
[372664700,1752738632174,-300.0,0.00017993,2]
[372664701,1752738632191,-460.0,0.00017993,2]
[372664702,1752738632200,-460.0,0.00017993,2]
[372664703,1752738632210,-587.22400294,0.00017993,2]
[372664704,1752738632219,-9700.0,0.00017994,2]
[372664705,1752738632229,-1200.0,0.00017994,2]
[372664706,1752738632238,-460.0,0.00017994,2]
[372664707,1752738632247,-460.0,0.00017994,2]
[372664708,1752738632257,-460.0,0.00017994,2]
[372664709,1752738632266,-460.0,0.00017994,2]
[372664710,1752738632275,-460.0,0.00017994,2]
[372664711,1752738632285,-460.54510476,0.00017994,2]
[372664712,1752738632294,-460.0,0.00017994,2]
[372664713,1752738632303,-460.0,0.00017994,2]
[372664714,1752738632312,-1457.31,0.00017994,2]
[372664715,1752738632323,-460.0,0.00017994,2]
[372664716,1752738632332,-460.0,0.00017995,2]
[372664717,1752738632341,-446.76394229,0.00017995,2]
[372664718,1752738632351,-460.0,0.00017995,2]
[372664719,1752738632360,-460.0,0.00017995,2]
[372664720,1752738632370,-460.0,0.00017995,2]
[372664721,1752738632379,-460.0,0.00017995,2]
[372664722,1752738632389,-460.0,0.00017995,2]
[372664723,1752738632398,-460.0,0.00017995,2]
[372664724,1752738632408,-1494.85144557,0.00017995,2]
[372664725,1752738632421,-2187.11855443,0.00017995,2]
[372664726,1752738632431,-2488.91,0.00017995,2]
[372664727,1752738632440,-460.0,0.00017995,2]
[372664728,1752738632449,-529.59,0.00017995,2]
[372664729,1752738632459,-460.0,0.00017995,2]
[372664730,1752738632468,-460.0,0.00017995,2]
[372664731,1752738632480,-460.0,0.00017995,2]
[372664732,1752738632491,-460.0,0.00017995,2]
[372664733,1752738632504,-460.0,0.00017995,2]
[372664734,1752738632513,-549.55506121,0.00017995,2]
[372664735,1752738632525,-845.85493879,0.00017995,2]
[372664736,1752738632535,-1869.9,0.00017995,2]
[372664737,1752738632544,-460.0,0.00017995,2]
[372664738,1752738632555,-460.0,0.00017995,2]
[372664739,1752738632564,-460.0,0.00017995,2]
[372664740,1752738632574,-460.0,0.00017995,2]
[372664741,1752738632583,-460.0,0.00017995,2]
[372664742,1752738632592,-1009.82523075,0.00017995,2]
[372664743,1752738632605,-57.61476925,0.00017995,2]
[372664744,1752738632614,-460.0,0.00017995,2]
[372664745,1752738632624,-182.17543782,0.00017995,2]
[372664746,1752738632636,-277.82456218,0.00017995,2]
[372664747,1752738632645,-460.0,0.00017995,2]
[372664748,1752738632655,-460.0,0.00017995,2]
[372664749,1752738632664,-460.0,0.00017996,2]
[372664750,1752738632673,-460.0,0.00017996,2]
[372664751,1752738632683,-460.0,0.00017996,2]
[372664752,1752738632692,-460.0,0.00017997,2]
[372664753,1752738632702,-460.0,0.00017997,2]
[372664754,1752738632711,-181.88482749,0.00017997,2]
[372664755,1752738632723,-278.11517251,0.00017997,2]
[372664756,1752738632732,-13.62786114,0.00017997,2]
[372664781,1752738637876,-260.99370582,0.00017993,2]
[372664783,1752738637886,-795.28086051,0.00017993,2]
[372664785,1752738637898,-137.60082822,0.00017993,2]
[372664787,1752738637914,-932.88168873,0.00017993,2]
[372664789,1752738637926,-932.88168873,0.00017993,2]
[372664791,1752738637935,-932.88168873,0.00017993,2]
[372664793,1752738637944,-932.88168873,0.00017993,2]
[372664795,1752738637954,-932.88168873,0.00017993,2]
[372664798,1752738637974,-932.88168873,0.00017993,2]
[372664800,1752738637984,-932.88168873,0.00017993,2]
[372664802,1752738637994,-932.88168873,0.00017993,2]
[372664804,1752738638003,-932.88168873,0.00017993,2]
[372664806,1752738638013,-932.88168873,0.00017993,2]
[372664808,1752738638023,-446.37213886,0.00017997,2]
[372664810,1752738638032,-462.64411128,0.00017997,2]
[372664812,1752738638042,-460.0,0.00017997,2]
[372664814,1752738638052,-460.0,0.00017997,2]
[372664816,1752738638061,-460.0,0.00017997,2]
[372664818,1752738638071,-463.67626189,0.00017997,2]
[372664821,1752738638081,-460.0,0.00017997,2]
[372664823,1752738638090,-460.0,0.00017997,2]
[372664825,1752738638099,-460.0,0.00017997,2]
[372664827,1752738638108,-460.0,0.00017997,2]
[372664829,1752738638118,-460.0,0.00017997,2]
[372664831,1752738638128,-460.0,0.00017997,2]
[372664833,1752738638137,-460.0,0.00017997,2]
[372664835,1752738638147,-460.0,0.00017997,2]
[372664837,1752738638156,-460.0,0.00017997,2]
[372664839,1752738638166,-460.0,0.00017997,2]
[372664841,1752738638176,-460.0,0.00017997,2]
[372664843,1752738638186,-446.38977247,0.00017997,2]
[372664933,1752738639051,-13.61022753,0.00017997,2]
[372664936,1752738639063,-460.0,0.00017997,2]
[372664938,1752738639072,-166.95535187,0.00017997,2]
[372664939,1752738639085,-293.04464813,0.00017997,2]
[372664941,1752738639095,-460.0,0.00017997,2]
[372664944,1752738639107,-907.15,0.00017997,2]
[372664946,1752738639117,-541.33,0.00017997,2]
[372664947,1752738639126,-112.42733987,0.00017997,2]
[372664950,1752738639138,-347.57266013,0.00017997,2]
[372664952,1752738639147,-320.01537501,0.00017997,2]
[372665044,1752738640042,-139.98462499,0.00017997,2]
[372665046,1752738640052,-460.0,0.00017997,2]
[372665049,1752738640062,-460.0,0.00017997,2]
[372665051,1752738640072,-460.0,0.00017997,2]
[372665053,1752738640082,-460.0,0.00017997,2]
[372665054,1752738640091,-460.0,0.00017997,2]
[372665057,1752738640101,-460.0,0.00017997,2]
[372665059,1752738640111,-488.23,0.00017997,2]
[372665061,1752738640120,-460.0,0.00017997,2]
[372665063,1752738640130,-460.0,0.00017997,2]
[372665065,1752738640139,-460.0,0.00017997,2]
[372665067,1752738640148,-718.52,0.00017997,2]
[372665069,1752738640158,-460.0,0.00017997,2]
[372665071,1752738640168,-460.0,0.00017997,2]
[372665072,1752738640179,-151.0,0.00017997,2]
[372665075,1752738640188,-460.0,0.00017997,2]
[372665077,1752738640198,-460.0,0.00017997,2]
[372665079,1752738640208,-484.49,0.00017997,2]
[372665081,1752738640218,-460.0,0.00017997,2]
[372665083,1752738640227,-460.0,0.00017997,2]
[372665085,1752738640237,-460.0,0.00017997,2]
[372665087,1752738640246,-460.0,0.00017997,2]
[372665089,1752738640255,-460.0,0.00017997,2]
[372665091,1752738640265,-460.0,0.00017997,2]
[372665093,1752738640274,-460.0,0.00017997,2]
[372665095,1752738640283,-460.0,0.00017997,2]
[372665096,1752738640292,-460.0,0.00017997,2]
[372665099,1752738640302,-460.0,0.00017997,2]
[372665100,1752738640311,-460.0,0.00017997,2]
[372665102,1752738640321,-460.0,0.00017999,2]
[372665104,1752738640332,-460.0,0.00017999,2]
[372665107,1752738640342,-460.0,0.00017999,2]
[372665109,1752738640351,-460.0,0.00017999,2]
[372665111,1752738640361,-460.0,0.00017999,2]
[372665113,1752738640375,-460.0,0.00017999,2]
[372665116,1752738640391,-460.0,0.00017999,2]
[372665118,1752738640402,-460.0,0.00017999,2]
[372665120,1752738640413,-460.0,0.00017999,2]
[372665122,1752738640425,-460.0,0.00017999,2]
[372665124,1752738640435,-460.0,0.00017999,2]
[372665126,1752738640445,-460.0,0.00017999,2]
[372665128,1752738640455,-460.0,0.00017999,2]
[372665130,1752738640465,-460.0,0.00017999,2]
[372665132,1752738640476,-460.0,0.00017999,2]
[372665135,1752738640491,-460.0,0.00017999,2]
[372665137,1752738640501,-460.0,0.00017999,2]
[372665139,1752738640511,-460.0,0.00017999,2]
[372665141,1752738640521,-460.0,0.00017999,2]
[372665143,1752738640531,-460.0,0.00017999,2]
[372665145,1752738640541,-460.0,0.00017999,2]
[372665147,1752738640551,-460.0,0.00017999,2]
[372665149,1752738640562,-476.40030117,0.00017999,2]
[372665151,1752738640572,-460.0,0.00017999,2]
[372665153,1752738640582,-460.0,0.00017999,2]
[372665155,1752738640592,-460.0,0.00017999,2]
[372665157,1752738640603,-460.0,0.00017999,2]
[372665159,1752738640613,-460.0,0.00017999,2]
[372665161,1752738640623,-460.0,0.00017999,2]
[372665164,1752738640633,-460.0,0.00017999,2]
[372665166,1752738640643,-460.0,0.00017999,2]
[372665168,1752738640653,-460.0,0.00017999,2]
[372665170,1752738640663,-151.0,0.00017999,2]
[372665172,1752738640675,-151.0,0.00017999,2]
[372665174,1752738640686,-151.0,0.00017999,2]
[372665176,1752738640696,-151.28441638,0.00017999,2]
[372665178,1752738640707,-151.0,0.00017999,2]
[372665180,1752738640718,-481.79,0.00017999,2]
[372665182,1752738640728,-460.0,0.00017999,2]
[372665184,1752738640737,-460.0,0.00017999,2]
[372665185,1752738640747,-460.0,0.00017999,2]
[372665186,1752738640756,-460.0,0.00017999,2]
[372665187,1752738640765,-460.0,0.00017999,2]
[372665188,1752738640775,-460.0,0.00017999,2]
[372665189,1752738640784,-461.94764585,0.00017999,2]
[372665190,1752738640794,-398.12407717,0.00017999,2]
[372665191,1752738640803,-460.0,0.00017999,2]
[372665192,1752738640813,-460.0,0.00017999,2]
[372665193,1752738640823,-490.63122503,0.00017999,2]
[372665194,1752738640832,-460.0,0.00017999,2]
[372665195,1752738640841,-460.0,0.00017999,2]
[372665196,1752738640852,-460.0,0.00017999,2]
[372665197,1752738640861,-460.0,0.00017999,2]
[372665198,1752738640870,-460.0,0.00017999,2]
[372665199,1752738640880,-460.0,0.00017999,2]
[372665200,1752738640889,-460.0,0.00017999,2]
[372665201,1752738640898,-151.0,0.00017999,2]
[372665202,1752738640909,-896.0,0.00017999,2]
[372665203,1752738640918,-462.73800375,0.00017999,2]
[372665204,1752738640929,-151.0,0.00017999,2]
[372665205,1752738640938,-825.0,0.00017999,2]
[372665206,1752738640948,-198.0,0.00017999,2]
[372665207,1752738640958,-500.0,0.00017999,2]
[372665208,1752738640967,-460.0,0.00017999,2]
[372665209,1752738640977,-460.0,0.00017999,2]
[372665210,1752738640986,-460.0,0.00017999,2]
[372665211,1752738640996,-460.0,0.00017999,2]
[372665212,1752738641009,-460.0,0.00017999,2]
[372665213,1752738641019,-460.0,0.00017999,2]
[372665214,1752738641028,-569.056064,0.00017999,2]
[372665216,1752738641039,-460.0,0.00017999,2]
[372665218,1752738641048,-460.0,0.00017999,2]
[372665220,1752738641059,-460.0,0.00017999,2]
[372665223,1752738641069,-504.95520683,0.00017999,2]
[372665225,1752738641079,-460.0,0.00017999,2]
[372665227,1752738641089,-460.0,0.00017999,2]
[372665229,1752738641099,-634.82,0.00017999,2]
[372665231,1752738641110,-460.0,0.00017999,2]
[372665233,1752738641120,-1403.68,0.00017999,2]
[372665235,1752738641130,-1280.11,0.00017999,2]
[372665237,1752738641140,-460.0,0.00017999,2]
[372665239,1752738641149,-460.0,0.00017999,2]
[372665241,1752738641159,-647.78,0.00017999,2]
[372665243,1752738641171,-460.0,0.00017999,2]
[372665245,1752738641182,-460.0,0.00017999,2]
[372665247,1752738641192,-555.74,0.00017999,2]
[372665249,1752738641201,-460.0,0.00017999,2]
[372665251,1752738641212,-1005.2034789,0.00018082,2]
[372665253,1752738641223,-432.62427411,0.00018106,2]
[372665255,1752738641233,-501.13340853,0.00018106,2]
[372665257,1752738641243,-460.0,0.00018106,2]
[372665259,1752738641253,-460.0,0.00018106,2]
[372665261,1752738641263,-460.0,0.00018106,2]
[372665263,1752738641272,-460.0,0.00018106,2]
[372665265,1752738641282,-460.0,0.00018106,2]
[372665267,1752738641293,-462.36494555,0.00018106,2]
[372665269,1752738641303,-460.0,0.00018106,2]
[372665271,1752738641312,-460.0,0.00018106,2]
[372665273,1752738641323,-460.0,0.00018106,2]
[372665275,1752738641333,-460.0,0.00018106,2]
[372665277,1752738641342,-460.0,0.00018106,2]
[372665279,1752738641352,-460.0,0.00018106,2]
[372665281,1752738641361,-460.0,0.00018106,2]
[372665283,1752738641371,-460.0,0.00018106,2]
[372665285,1752738641380,-460.0,0.00018106,2]
[372665287,1752738641390,-460.0,0.00018106,2]
[372665289,1752738641400,-460.0,0.00018106,2]
[372665291,1752738641410,-460.0,0.00018106,2]
[372665293,1752738641420,-540.29,0.00018106,2]
[372665295,1752738641429,-2572.99,0.00018106,2]
[372665297,1752738641439,-460.0,0.00018106,2]
[372665299,1752738641450,-1430.16,0.00018107,2]
[372665302,1752738641462,-527.35245545,0.00018107,2]
[372665304,1752738641473,-460.0,0.00018107,2]
[372665306,1752738641485,-460.0,0.00018107,2]
[372665307,1752738641496,-460.0,0.00018107,2]
[372665309,1752738641506,-1391.81,0.00018107,2]
[372665311,1752738641516,-329.04574394,0.00018107,2]
[372665314,1752738641526,-2652.75,0.00018107,2]
[372665316,1752738641537,-857.11,0.00018107,2]
[372665318,1752738641548,-460.0,0.00018107,2]
[372665320,1752738641558,-460.0,0.0001811,2]
[372665322,1752738641577,-460.0,0.0001811,2]
[372665325,1752738641592,-460.0,0.0001811,2]
[372665327,1752738641605,-460.0,0.0001811,2]
[372665330,1752738641619,-460.0,0.0001811,2]
[372665332,1752738641632,-241.9587798,0.0001811,2]
[372665334,1752738641645,-460.0,0.0001811,2]